bitfinex-derivatives/quotes_ETHF0:USTF0_20250810
["timestamp","ask_amount","ask_price","bid_price","bid_amount"]
[1754817706628,1.514,4221.2,4221.1,0.9097]
[1754817707324,1.514,4221.2,4221.1,1.5507]
[1754817709332,1.514,4221.2,4221.1,0.9097]
[1754817710135,1.514,4221.2,4221.1,1.5507]
[1754817710737,1.514,4221.1,4221.0,0.4738]
[1754817714139,1.514,4221.1,4221.0,1.7702]
[1754817714335,1.514,4221.1,4221.0,2.0245]
[1754817715333,1.514,4221.1,4221.0,0.8311]
[1754817716332,1.514,4221.1,4221.0,1.3835]
[1754817717640,1.514,4221.1,4221.0,2.0245]
[1754817721646,3.2078,4221.2,4221.0,2.0245]
[1754817721948,4.0186,4221.2,4221.1,1.5507]
[1754817722142,4.7218,4221.2,4221.1,1.5507]
[1754817722536,5.32821005,4221.2,4221.1,1.5507]
[1754817727148,5.32821005,4221.2,4221.1,0.1867]
[1754817731952,5.32821005,4221.2,4221.1,1.5598]
[1754817732342,3.81421005,4221.2,4221.1,1.5598]
[1754817732545,3.2078,4221.2,4221.1,1.5598]
[1754817735454,3.6206,4221.2,4221.1,1.5598]
[1754817735753,3.2078,4221.2,4221.1,1.5598]
[1754817736152,3.8194,4221.2,4221.1,0.3642]
[1754817736354,1.2973,4221.1,4221.0,0.4738]
[1754817736655,2.18071005,4221.1,4221.0,0.4738]
[1754817737156,2.18071005,4221.1,4221.0,2.026]
[1754817741662,1.90781005,4221.1,4221.0,2.026]
[1754817741959,1.03261005,4221.1,4221.0,2.026]
[1754817742163,1.3014,4221.1,4221.0,2.026]
[1754817742364,2.18071005,4221.1,4221.0,2.026]
[1754817743253,1.21801005,4221.1,4221.0,2.026]
[1754817743563,1.5743,4221.1,4221.0,2.026]
[1754817743763,2.18071005,4221.1,4221.0,2.026]
[1754817744162,2.18166168,4221.1,4221.0,2.026]
[1754817746668,2.18166168,4221.1,4221.0,1.3663]
[1754817746968,2.18166168,4221.1,4221.0,0.4738]
[1754817748468,2.18166168,4221.1,4221.0,1.3663]
[1754817749266,2.18166168,4221.1,4221.0,1.757]
[1754817749869,2.18166168,4221.1,4221.0,0.8304]
[1754817750865,2.18166168,4221.1,4221.0,0.3566]
[1754817751668,2.18166168,4221.1,4221.0,0.1791]
[1754817753874,2.18166168,4221.1,4221.0,1.5522]
[1754817758181,0.60736168,4221.1,4221.0,1.5522]
[1754817758378,4.2057,4221.2,4221.1,2.01589]
[1754817758582,4.7309,4221.2,4221.1,2.01589]
[1754817758875,5.33826168,4221.2,4221.1,2.01589]
[1754817759482,5.33826168,4221.2,4221.1,0.01589]
[1754817759784,5.33826168,4221.2,4221.1,0.84238]
[1754817761587,5.33826168,4221.2,4221.1,1.01088]
[1754817764490,4.95066168,4221.2,4221.1,1.01088]
[1754817765182,5.33826168,4221.2,4221.1,1.01088]
[1754817767494,2.13046168,4221.2,4221.1,1.01088]
[1754817767695,1.5231,4221.2,4221.1,1.01088]
[1754817774794,1.5231,4221.2,4221.1,0.66608]
[1754817775095,1.5231,4221.2,4221.1,0.47379]
[1754817779896,0.60736168,4221.3,4220.5,0.47385]
[1754817779897,1.5231,4220.6,4220.5,0.47385]
[1754817780294,1.5231,4220.6,4219.8,4.54713]
[1754817780295,2.13046168,4220.6,4220.4,0.47386]
[1754817780601,1.5231,4220.5,4220.4,0.47386]
[1754817781103,1.5231,4220.2,4220.1,0.47389]
[1754817781303,4.7309,4220.2,4220.1,0.47389]
[1754817781502,5.33826168,4220.2,4220.1,0.47389]
[1754817783598,5.33826168,4220.2,4219.6,0.99485]
[1754817783599,1.5231,4219.7,4219.6,0.99485]
[1754817783797,4.7309,4219.7,4219.6,0.47395]
[1754817783995,4.7309,4219.7,4219.1,0.1682]
[1754817783996,4.42546168,4219.7,4219.5,0.47396]
[1754817784201,1.5231,4219.6,4219.5,0.47396]
[1754817784402,2.13046168,4219.6,4219.5,0.47396]
[1754817784801,0.6103,4219.4,4219.3,0.47398]
[1754817785110,1.5231,4219.4,4219.3,0.47398]
[1754817785408,0.9095,4219.1,4218.3,0.1683]
[1754817785603,0.9095,4219.0,4218.3,0.1683]
[1754817785902,1.5318,4218.7,4218.6,0.65036]
[1754817786407,1.5318,4218.7,4218.6,0.47406]
[1754817787796,1.5318,4218.7,4218.6,0.82936]
[1754817787997,3.9125,4219.1,4219.0,0.99762]
[1754817788299,3.4626,4219.1,4219.0,1.15222]
[1754817789101,3.2078,4219.1,4219.0,1.15222]
[1754817789705,3.4626,4219.1,4219.0,1.15222]
[1754817790610,0.2548,4219.1,4219.0,1.15222]
[1754817791111,4.7396,4219.7,4219.6,0.99755]
[1754817792200,4.7396,4219.7,4219.3,0.1546]
[1754817792201,0.9095,4219.6,4219.3,0.47398]
[1754817792404,1.5318,4219.1,4219.0,0.47402]
[1754817792600,4.7396,4219.1,4219.0,0.47402]
[1754817792809,3.8301,4219.1,4218.9,0.47403]
[1754817793008,1.5318,4219.0,4218.9,0.47403]
[1754817793407,1.5318,4219.0,4218.9,0.65033]
[1754817793607,1.5318,4219.0,4218.9,0.99763]
[1754817794311,3.4626,4219.1,4219.0,0.6782]
[1754817795107,3.7377,4219.1,4219.0,0.6782]
[1754817795308,0.2548,4219.3,4219.1,0.79691]
[1754817795507,1.1046,4219.3,4219.2,0.5236]
[1754817795710,1.277,4219.3,4219.2,0.5236]
[1754817796114,1.5318,4219.3,4219.2,0.5236]
[1754817800814,1.2676,4219.2,4219.1,0.47401]
[1754817801015,0.9095,4219.1,4218.9,0.47402]
[1754817801219,1.5318,4219.0,4218.9,0.47402]
[1754817802313,0.6223,4219.0,4218.7,0.47405]
[1754817802518,1.5318,4218.8,4218.7,0.47405]
[1754817805324,1.5318,4218.7,4218.6,0.47406]
[1754817805527,1.5318,4218.6,4218.5,0.47407]
[1754817805727,4.7396,4218.6,4218.5,0.47407]
[1754817808525,4.7396,4218.6,4218.5,0.99767]
[1754817808726,4.36,4218.6,4218.5,1.15227]
[1754817809228,3.9125,4218.6,4218.5,1.15227]
[1754817809529,3.4626,4218.6,4218.5,1.15227]
[1754817810528,4.1173,4218.6,4218.5,1.15227]
[1754817810720,3.4626,4218.6,4218.5,1.15227]
[1754817811117,3.7377,4218.6,4218.5,1.15227]
[1754817811329,4.5672,4218.6,4218.5,1.15227]
[1754817811827,3.2078,4218.6,4218.5,1.15227]
[1754817812024,4.1876,4218.6,4218.5,1.15227]
[1754817812220,4.7396,4218.6,4218.5,0.99767]
[1754817812829,4.36,4218.6,4218.5,1.15227]
[1754817813022,4.7396,4218.6,4218.5,1.15227]
[1754817813528,4.7396,4218.6,4218.5,0.99767]
[1754817814227,4.7396,4218.6,4218.5,0.47407]
[1754817817033,4.7396,4218.6,4218.5,0.99897]
[1754817817326,4.7396,4218.6,4218.5,1.15327]
[1754817817327,3.2078,4218.6,4218.5,1.15327]
[1754817818227,0.4182,4219.1,4218.1,1.1853]
[1754817818228,3.2078,4219.1,4219.0,1.00182]
[1754817818537,3.4651,4219.1,4219.0,1.15612]
[1754817818833,4.5918,4219.1,4219.0,1.15612]
[1754817819531,4.7767,4219.1,4219.0,1.15612]
[1754817819927,4.7767,4219.1,4219.0,1.00182]
[1754817820635,0.2573,4219.1,4219.0,1.15612]
[1754817820834,0.2573,4219.4,4219.3,1.00179]
[1754817821034,1.5689,4219.4,4219.3,1.15609]
[1754817821335,1.5689,4219.4,4219.3,1.00179]
[1754817822131,1.5689,4219.4,4219.3,1.15609]
[1754817822528,1.5689,4219.4,4219.3,1.00179]
[1754817823837,0.2573,4219.5,4219.4,0.3223]
[1754817824136,3.2078,4219.6,4219.5,0.83376]
[1754817824335,3.7431,4219.6,4219.5,1.15606]
[1754817824527,4.7767,4219.6,4219.5,1.00176]
[1754817824924,3.4651,4219.6,4219.5,1.15606]
[1754817825537,3.7431,4219.6,4219.5,1.15606]
[1754817825836,4.1736,4219.6,4219.5,1.15606]
[1754817826226,3.4651,4219.6,4219.5,1.15606]
[1754817827339,4.5918,4219.6,4219.5,1.15606]
[1754817827642,4.7767,4219.6,4219.5,0.83376]
[1754817828939,4.7767,4219.6,4218.6,4.39297]
[1754817828940,3.8232,4219.6,4218.6,4.39297]
[1754817829130,0.5353,4219.4,4219.1,0.474]
[1754817829334,1.384,4219.1,4219.0,0.47401]
[1754817829538,4.7767,4219.1,4219.0,0.47401]
[1754817829740,0.6154,4218.2,4218.1,0.7937]
[1754817829940,1.5689,4218.2,4218.1,1.43582]
[1754817832133,3.2078,4219.1,4219.0,0.47402]
[1754817832335,4.4987,4219.1,4219.0,0.47402]
[1754817834044,1.2909,4218.3,4218.2,0.6169]
[1754817834242,1.5689,4218.3,4218.2,0.6169]
[1754817835043,1.5689,4218.3,4218.2,1.09101]
[1754817838445,0.4182,4218.9,4218.8,0.47404]
[1754817838641,1.3116,4218.9,4218.8,0.91174]
[1754817838839,3.2078,4219.1,4218.4,1.18521]
[1754817838840,4.3461,4219.1,4219.0,1.09092]
[1754817839039,4.5194,4219.1,4219.0,1.09092]
[1754817839245,4.7767,4219.1,4219.0,1.09092]
[1754817839744,3.8956,4219.1,4219.0,1.09092]
[1754817839945,4.3138,4219.1,4219.0,1.09092]
[1754817840143,1.2909,4219.1,4219.0,1.09092]
[1754817840545,1.03669319,4219.5,4219.4,1.09088]
[1754817840735,0.8487,4219.5,4219.4,1.09088]
[1754817841045,1.106,4219.5,4219.4,1.24518]
[1754817841239,1.106,4219.5,4219.4,1.09088]
[1754817841439,1.5689,4219.5,4219.4,1.09088]
[1754817842248,3.2078,4219.6,4219.4,1.09088]
[1754817842447,1.5689,4219.5,4219.4,1.09088]
[1754817843948,1.5689,4219.4,4219.3,0.47399]
[1754817847352,1.5289,4219.1,4219.0,0.47402]
[1754817847548,4.7367,4219.1,4219.0,0.47402]
[1754817847750,4.0341,4219.1,4219.0,1.09982]
[1754817847944,3.9204,4219.1,4219.0,1.09982]
[1754817848140,3.9204,4219.1,4219.0,1.25432]
[1754817848550,4.3035,4219.1,4219.0,1.25432]
[1754817849548,4.3035,4219.1,4219.0,1.09982]
[1754817849748,4.7367,4219.1,4219.0,1.09982]
[1754817850553,4.4804,4219.1,4219.0,1.09982]
[1754817850950,4.4804,4219.1,4219.0,1.25432]
[1754817851148,4.7367,4219.1,4219.0,1.09982]
[1754817853549,4.7367,4219.1,4219.0,0.47402]
[1754817854155,4.7367,4219.1,4219.0,0.75372]
[1754817854353,4.7367,4219.1,4219.0,0.92582]
[1754817855345,3.4652,4219.1,4219.0,1.09982]
[1754817855555,4.3035,4219.1,4219.0,1.09982]
[1754817855758,4.7367,4219.1,4219.0,1.09982]
[1754817857658,4.7367,4219.1,4219.0,0.47402]
[1754817858958,4.7367,4219.1,4219.0,0.92582]
[1754817859948,4.7367,4219.1,4219.0,0.47402]
[1754817860150,4.7367,4219.1,4218.9,0.47402]
[1754817860359,1.5289,4219.0,4218.9,1.09982]
[1754817861255,1.5289,4219.0,4218.9,0.92582]
[1754817861553,0.47403,4218.9,4218.7,0.47405]
[1754817861759,1.5289,4218.8,4218.7,0.47405]
[1754817862757,1.70243791,4219.0,4218.9,1.09983]
[1754817863154,2.13563791,4219.0,4218.9,1.09983]
[1754817863354,2.13558176,4219.0,4218.9,1.09983]
[1754817864854,1.5289,4219.0,4218.9,1.09983]
[1754817865055,2.13560214,4219.0,4218.9,1.09983]
[1754817868652,0.60670214,4219.0,4218.9,1.09983]
[1754817868853,1.2726,4219.0,4218.9,1.09983]
[1754817869159,2.13560214,4219.0,4218.9,1.09983]
[1754817876064,2.13560214,4219.0,4218.9,0.90183]
[1754817876365,2.13560214,4219.0,4218.9,0.47403]
[1754817878057,0.609,4218.8,4218.7,0.47405]
[1754817878263,1.5317,4218.8,4218.7,0.47405]
[1754817878968,0.609,4218.8,4218.6,0.47406]
[1754817879263,1.5317,4218.7,4218.6,0.47406]
[1754817879464,0.9227,4218.6,4218.4,0.47408]
[1754817879763,1.5317,4218.4,4218.3,0.47409]
[1754817880762,1.5317,4218.4,4218.3,0.72979]
[1754817881960,1.5317,4218.4,4218.3,0.2557]
[1754817882155,1.08309,4218.4,4218.1,0.47412]
[1754817882356,0.609,4218.2,4218.1,0.47412]
[1754817882566,1.5317,4217.6,4217.5,4.29679]
[1754817882864,1.278,4217.6,4217.5,4.45139]
[1754817883360,0.2562,4217.6,4217.5,4.29679]
[1754817883559,0.2562,4217.6,4217.5,4.45139]
[1754817883760,1.1063,4217.6,4217.5,4.45139]
[1754817883962,1.5317,4217.6,4217.5,0.6148]
[1754817884561,4.7395,4217.6,4217.5,0.1842]
[1754817884966,1.5317,4217.3,4217.2,1.08902]
[1754817886458,1.5317,4217.3,4217.2,0.6148]
[1754817886663,1.5317,4217.3,4217.2,0.4399]
[1754817887666,1.5317,4217.3,4217.2,0.6148]
[1754817887865,1.5317,4217.3,4217.2,0.4399]
[1754817888166,1.5317,4217.1,4217.0,0.47424]
[1754817888370,4.7395,4217.1,4217.0,0.47424]
[1754817888867,4.7395,4217.1,4216.4,36.99]
[1754817888868,3.8168,4217.1,4216.4,36.99]
[1754817889172,1.5317,4216.6,4216.5,1.0891]
[1754817889475,0.5845,4216.5,4216.3,0.47432]
[1754817889670,1.5317,4216.4,4216.3,0.83342]
[1754817890169,1.5317,4216.4,4216.3,1.08912]
[1754817891977,1.5317,4216.3,4216.2,0.47433]
[1754817892278,1.5317,4215.6,4215.3,0.47444]
[1754817892482,1.5317,4215.4,4215.3,0.68745809]
[1754817892974,1.5317,4215.4,4215.3,0.86235809]
[1754817893174,4.2296,4215.9,4215.8,0.4399]
[1754817893367,3.2078,4215.9,4215.8,0.6148]
[1754817893673,4.3141,4215.9,4215.8,0.6148]
[1754817893867,0.2562,4215.9,4215.8,0.6148]
[1754817894171,1.5317,4215.9,4215.8,0.4399]
[1754817894374,1.5317,4215.9,4215.8,0.6148]
[1754817895164,0.2562,4215.9,4215.8,0.6148]
[1754817895370,1.5317,4215.9,4215.8,0.1842]
[1754817895675,1.5317,4215.9,4215.8,0.6148]
[1754817896373,0.8501,4216.2,4216.1,0.6148]
[1754817896969,1.1063,4216.2,4216.1,0.6148]
[1754817897273,0.9227,4216.1,4215.9,0.47437]
[1754817897576,1.5317,4216.0,4215.9,0.47437]
[1754817898971,0.9227,4215.9,4215.7,0.73008]
[1754817899175,0.609,4215.8,4215.6,0.4744]
[1754817899371,0.47437,4215.9,4215.6,0.3591]
[1754817899372,0.691,4215.7,4215.6,0.3591]
[1754817899574,0.8627,4215.7,4215.6,0.3591]
[1754817899771,1.5317,4215.7,4215.6,0.6148]
[1754817900476,1.278,4215.7,4215.6,0.6148]
[1754817900779,1.5317,4215.6,4215.5,0.73011]
[1754817900975,1.5317,4215.6,4215.5,0.91431]
[1754817901376,1.5317,4215.6,4215.5,1.08921]
[1754817901576,1.278,4215.6,4215.5,1.08921]
[1754817901775,0.2562,4215.9,4215.8,1.08918]
[1754817901979,1.5317,4216.3,4216.2,0.6148]
[1754817903382,0.609,4216.0,4215.9,1.08917]
[1754817903679,1.5317,4216.0,4215.9,1.08917]
[1754817904176,2.00606,4216.0,4215.7,0.47439]
[1754817904370,0.609,4215.8,4215.7,0.91429]
[1754817904573,1.5317,4215.8,4215.7,0.47439]
[1754817905074,1.5317,4215.8,4215.7,0.91429]
[1754817905278,1.5317,4215.8,4215.7,1.08919]
[1754817905479,1.5317,4215.8,4215.7,1.09009]
[1754817906386,0.2562,4215.8,4215.7,1.09159]
[1754817906785,0.431,4215.8,4215.7,1.09159]
[1754817907382,0.6881,4215.8,4215.7,0.83449]
[1754817907590,1.5366,4215.8,4215.7,1.10869]
[1754817907792,1.26,4215.8,4215.7,1.10869]
[1754817907996,0.6881,4215.8,4215.7,1.26359]
[1754817908287,3.2078,4215.9,4215.7,1.26359]
[1754817908487,3.2078,4215.9,4215.8,0.4276]
[1754817908691,3.2078,4215.9,4215.8,0.7744]
[1754817908900,3.4817,4215.9,4215.8,0.7744]
[1754817910901,3.2078,4215.9,4215.8,0.7744]
[1754817911402,4.3058,4216.4,4216.3,1.09382]
[1754817911698,4.4855,4216.4,4216.3,1.09382]
[1754817911899,4.3058,4216.4,4216.3,1.09382]
[1754817912699,3.4817,4216.4,4216.3,1.24872]
[1754817913398,3.9136,4216.4,4216.3,1.24872]
[1754817913589,4.7621,4216.4,4216.3,1.09382]
[1754817913794,4.7621,4216.4,4216.3,0.91552]
[1754817914499,4.7621,4216.4,4216.3,1.24872]
[1754817914500,3.2078,4216.4,4216.3,1.24872]
[1754817914699,0.7058,4216.8,4216.7,1.09378]
[1754817914899,1.098,4216.8,4216.7,1.09378]
[1754817915401,1.5543,4216.8,4216.7,1.09378]
[1754817915589,1.098,4216.8,4216.7,1.09378]
[1754817915795,0.2739,4216.8,4216.7,1.24868]
[1754817916400,3.4844,4217.2,4217.0,0.74605]
[1754817916401,3.2078,4217.2,4217.0,0.74605]
[1754817916602,4.4882,4217.2,4217.1,0.6195]
[1754817917291,4.7621,4217.2,4217.1,0.6195]
[1754817917900,4.4855,4217.2,4217.1,0.6195]
[1754817918602,3.6565,4217.2,4217.1,0.7744]
[1754817918801,4.3058,4217.2,4217.1,0.6195]
[1754817919107,4.7621,4217.2,4217.1,0.6195]
[1754817919298,3.2078,4217.2,4217.1,6.6195]
[1754817919602,1.0038,4218.2,4218.1,0.1694]
[1754817919799,1.0038,4218.2,4218.1,0.4412]
[1754817920201,1.5543,4218.2,4218.1,0.4412]
[1754817921104,1.5543,4218.2,4218.1,0.91532]
[1754817921799,1.5543,4218.2,4218.1,1.09362]
[1754817921998,1.098,4218.2,4218.1,1.09362]
[1754817922394,1.2777,4218.2,4218.1,1.09362]
[1754817922596,1.5543,4218.2,4218.1,1.09362]
[1754817923293,1.5543,4218.2,4218.1,1.09212]
[1754817926605,0.2739,4218.2,4218.1,1.24682]
[1754817926911,0.7058,4218.2,4218.1,1.24682]
[1754817927106,1.098,4218.2,4218.1,1.24682]
[1754817927407,1.098,4218.2,4218.1,1.09212]
[1754817927911,1.5543,4218.2,4218.1,1.09212]
[1754817930710,1.2777,4218.2,4218.1,1.09212]
[1754817931013,1.2777,4218.2,4218.1,1.24682]
[1754817931512,1.098,4218.2,4218.1,1.24682]
[1754817932114,0.2739,4218.2,4218.1,1.24682]
[1754817932505,0.8882,4218.7,4218.6,0.47407]
[1754817932711,1.2804,4218.7,4218.6,1.09117]
[1754817933208,1.5543,4218.7,4218.6,1.09117]
[1754817934507,1.098,4218.7,4218.6,1.09117]
[1754817934703,1.5543,4218.7,4218.6,1.09117]
[1754817940617,1.3493,4218.7,4218.6,1.09207]
[1754817940817,1.522,4218.7,4218.6,1.09207]
[1754817946820,1.522,4218.7,4218.6,1.09117]
[1754817953817,1.522,4218.7,4218.6,1.23793304]
[1754817958125,1.522,4218.7,4218.6,1.23883304]
[1754817959923,1.522,4218.7,4218.6,1.23793304]
[1754817963521,1.522,4218.7,4218.6,1.23883304]
[1754817968930,1.522,4218.7,4218.6,1.23909653]
[1754817969126,1.522,4218.7,4218.6,1.23819653]
[1754817969426,0.47406,4218.6,4218.3,0.47409]
[1754817969635,1.5162,4218.3,4218.2,3.2078]
[1754817971431,1.5162,4218.3,4218.2,3.9639]
[1754817971627,1.5162,4218.3,4218.2,4.354]
[1754817971827,1.0806,4218.3,4218.2,4.354]
[1754817972225,0.2662,4218.4,4218.3,0.5635]
[1754817972430,1.25,4218.8,4218.7,0.6088]
[1754817972629,0.6058,4218.6,4218.5,0.79176]
[1754817972832,1.25,4218.6,4218.5,0.90226]
[1754817973033,1.5162,4218.6,4218.5,0.64446]
[1754817973430,1.5162,4218.6,4218.5,0.90226]
[1754817973733,1.5162,4218.6,4218.5,1.04956]
[1754817975237,1.5162,4218.6,4218.5,1.46576]
[1754817976129,0.6987,4218.6,4218.5,1.46576]
[1754817976437,1.3429,4218.6,4218.5,1.46576]
[1754817976625,1.5162,4218.6,4218.5,1.46576]
[1754817978438,1.2539,4218.6,4218.5,1.62026]
[1754817978627,1.0806,4218.6,4218.5,1.62026]
[1754817979032,1.3429,4218.6,4218.5,1.62026]
[1754817979335,1.5162,4218.6,4218.5,1.46576]
[1754817980139,1.5162,4218.6,4218.5,0.64446]
[1754817980535,1.5162,4218.6,4218.5,0.90226]
[1754817981242,1.5162,4218.6,4217.4,0.8718]
[1754817981243,0.4265,4217.5,4217.4,0.8718]
[1754817981536,0.60767453,4218.5,4218.0,0.854]
[1754817981738,0.2662,4218.5,4218.4,1.468]
[1754817982335,0.60767453,4219.1,4218.9,0.8718]
[1754817982336,1.5162,4219.0,4218.9,0.8718]
[1754817982532,1.5162,4219.0,4218.9,1.2603]
[1754817983335,0.3819,4218.9,4218.0,0.6463]
[1754817983639,0.6058,4217.9,4217.8,3.4656]
[1754817983842,1.5162,4217.9,4217.8,4.0245]
[1754817984029,1.5162,4217.9,4217.7,0.47416]
[1754817984030,1.5162,4217.9,4217.1,3.2078]
[1754817984234,1.5162,4217.3,4217.2,1.73452]
[1754817984834,1.2539,4217.3,4217.2,1.73452]
[1754817985035,0.4265,4218.0,4217.9,0.73714]
[1754817985232,0.872,4218.0,4217.9,1.94214]
[1754817985437,0.4455,4218.0,4217.9,1.73444]
[1754817985639,0.60767453,4218.2,4217.9,1.94214]
[1754817985842,0.2662,4218.2,4218.1,1.468]
[1754817986039,1.30637453,4218.6,4218.5,1.08807]
[1754817986236,0.6987,4218.6,4218.5,1.94207]
[1754817986439,0.4455,4218.6,4218.5,1.94207]
[1754817987142,0.2662,4218.6,4218.5,1.94207]
[1754817990040,0.4455,4218.6,4218.5,1.94207]
[1754817990237,1.5162,4218.6,4218.5,1.73437]
[1754817994348,1.2539,4218.6,4218.5,1.73437]
[1754817994551,0.6987,4218.6,4218.5,1.94207]
[1754817994749,0.60767453,4218.8,4218.5,1.34587]
[1754817995052,0.87387453,4219.3,4219.2,1.94199]
[1754817995349,0.4325,4219.7,4219.6,1.95725]
[1754817995650,0.6886,4220.0,4219.9,1.09501]
[1754817995850,1.3547,4220.0,4219.9,1.75621]
[1754817996147,1.0971,4220.0,4219.9,1.75621]
[1754817996644,0.6952,4220.0,4219.9,1.96381]
[1754817998349,1.5257,4220.0,4219.9,0.47391]
[1754817998650,1.5257,4220.0,4219.9,0.75321]
[1754817998852,1.5257,4220.0,4219.9,1.31501]
[1754817999148,1.5257,4220.0,4219.9,1.49151]
[1754817999348,1.5257,4220.0,4219.9,1.75621]
[1754818001350,1.2681,4220.0,4219.9,1.96381]
[1754818003555,1.2681,4220.0,4219.9,1.75621]
[1754818003751,1.5257,4220.0,4219.9,1.75621]
[1754818004452,1.5257,4220.0,4219.9,1.57971]
[1754818004753,1.5257,4220.0,4219.9,1.75621]
[1754818008057,1.5257,4220.0,4219.9,1.96381]
[1754818008259,1.2681,4220.0,4219.9,1.96381]
[1754818009451,1.5257,4220.0,4219.9,1.96381]
[1754818009658,1.5257,4220.0,4219.9,1.75621]
[1754818013162,1.5257,4220.0,4219.9,0.65381]
[1754818015261,1.5257,4220.0,4219.9,1.31501]
[1754818016261,1.5257,4220.0,4219.9,1.57971]
[1754818017063,1.5257,4220.0,4219.9,1.75621]
[1754818017557,1.2681,4220.0,4219.9,1.96381]
[1754818017759,1.1238,4220.4,4220.3,1.09496]
[1754818018060,1.5257,4220.4,4220.3,1.09496]
[1754818018460,1.5257,4220.4,4220.3,1.75616]
[1754818018965,1.5257,4220.4,4220.3,1.2823]
[1754818019462,1.5257,4220.4,4220.3,1.1058]
[1754818022364,1.5257,4220.4,4220.3,0.4592]
[1754818022669,3.68166,4220.5,4220.1,0.47389]
[1754818022670,1.5257,4220.2,4220.1,0.47389]
[1754818024160,1.5257,4220.2,4220.1,0.75319]
[1754818024464,1.5257,4220.2,4220.1,0.47389]
[1754818024860,1.5257,4220.2,4219.9,0.2793]
[1754818024861,0.602,4220.2,4219.9,0.2793]
[1754818025061,0.602,4220.2,4217.6,28.15220787]
[1754818025062,0.171,4219.2,4219.0,3.96111]
[1754818025261,1.5257,4219.1,4219.0,3.68181]
[1754818025662,1.5257,4219.1,4219.0,0.73221]
[1754818025857,1.5257,4219.1,4219.0,0.8237]
[1754818026263,1.5257,4219.1,4219.0,0.1803]
[1754818027562,1.5257,4219.1,4219.0,1.2708]
[1754818033268,3.4661,4219.4,4219.3,0.4423]
[1754818033569,3.6368,4219.4,4219.3,1.95258]
[1754818033770,3.3785,4219.4,4219.3,1.95258]
[1754818033971,0.8623,4219.4,4219.3,1.95258]
[1754818034469,2.15873983,4219.9,4219.8,0.65422]
[1754818034772,2.15873983,4219.9,4219.8,1.55962]
[1754818034973,2.15873983,4219.9,4219.8,1.0857]
[1754818035167,1.5531,4219.9,4219.8,1.0857]
[1754818035371,0.2794,4219.9,4219.8,1.2708]
[1754818035568,3.2078,4220.0,4219.9,0.466]
[1754818035873,3.2078,4220.0,4219.9,1.4786]
[1754818035874,3.3785,4220.0,4219.9,1.4786]
[1754818036071,4.4815,4220.0,4219.9,1.2708]
[1754818036274,4.7609,4220.0,4219.9,1.2708]
[1754818037174,4.7609,4220.0,4219.9,1.0857]
[1754818039175,4.7609,4220.0,4219.9,0.7005]
[1754818039371,4.7609,4220.0,4219.9,0.4385]
[1754818040370,4.7609,4220.0,4219.9,0.8237]
[1754818041779,4.7609,4220.0,4219.9,1.0857]
[1754818042280,3.9162,4220.0,4219.9,1.4786]
[1754818042473,3.9162,4220.0,4219.3,1.18494]
[1754818042474,0.4501,4220.2,4220.1,1.95249]
[1754818042673,1.292,4220.2,4220.1,1.95249]
[1754818042868,1.5531,4220.2,4220.1,1.74469]
[1754818043073,1.292,4220.2,4220.1,1.95249]
[1754818043367,1.5531,4220.2,4220.1,1.74469]
[1754818045476,1.5531,4220.2,4219.1,3.3881]
[1754818045477,0.1707,4219.2,4219.1,3.3881]
[1754818045669,1.5531,4219.2,4219.1,1.2708]
[1754818046079,1.5531,4219.2,4219.1,1.4786]
[1754818046281,1.5531,4219.2,4219.1,1.9526]
[1754818046676,1.292,4219.2,4219.1,1.9526]
[1754818047077,1.5531,4219.2,4219.1,1.9526]
[1754818047980,1.292,4219.2,4219.1,1.9526]
[1754818048183,0.2794,4219.2,4219.1,1.9526]
[1754818049077,1.5531,4219.9,4219.8,1.74473]
[1754818049279,0.6057245,4220.4,4220.1,0.47389]
[1754818049479,0.6004,4220.4,4220.3,1.2708]
[1754818049878,1.0126,4220.4,4220.3,1.2708]
[1754818050082,1.5531,4220.4,4220.3,1.2708]
[1754818050478,2.1588245,4220.4,4220.3,1.2708]
[1754818052284,2.1588245,4220.4,4220.3,1.0857]
[1754818053185,0.47387,4220.3,4220.1,0.47389]
[1754818053382,0.6004,4220.2,4220.1,0.47389]
[1754818053580,1.5531,4220.2,4220.1,0.47389]
[1754818054685,1.5531,4220.2,4220.1,1.74469]
[1754818055682,0.7084,4220.2,4220.1,1.95229]
[1754818056485,0.4501,4220.2,4220.1,1.95229]
[1754818058686,0.3882,4220.5,4220.1,1.2202]
[1754818058889,1.5334,4220.8,4220.7,1.2724]
[1754818059189,1.2702,4220.8,4220.7,1.2724]
[1754818059389,1.5334,4220.8,4220.7,1.2724]
[1754818060387,0.4453,4220.8,4220.7,1.48]
[1754818060788,0.8335,4220.8,4220.7,1.48]
[1754818061294,0.4453,4220.8,4220.7,1.48]
[1754818061993,0.4453,4220.8,4220.7,1.2724]
[1754818062192,0.4453,4220.8,4220.7,1.48]
[1754818062392,1.092,4220.8,4220.7,1.48]
[1754818062592,1.87978192,4221.5,4221.4,1.30415]
[1754818062793,1.87978192,4221.5,4221.4,1.74615]
[1754818062993,2.13928192,4221.5,4221.4,1.74615]
[1754818069999,1.05118192,4221.5,4221.4,0.47375]
[1754818070194,0.2595,4221.5,4221.4,1.95375]
[1754818070399,0.7038,4221.5,4221.4,1.74615]
[1754818070605,1.3552,4221.5,4221.4,1.74615]